bitfinex/quotes_ETHUSD_20250414
["timestamp","ask_amount","ask_price","bid_price","bid_amount"]
[1744623712604,4.89957,1632.8,1632.5,4.90034]
[1744623713309,0.7946,1632.7,1632.2,1.0861713]
[1744623713474,3.13356293,1632.5,1632.0,0.7814]
[1744623713675,9.80298,1632.2,1631.8,16.79735]
[1744623713881,4.90167,1632.1,1631.8,11.89483]
[1744623714075,4.90167,1632.1,1631.9,1.189483]
[1744623714309,5.68347,1632.1,1631.8,6.211]
[1744623714484,0.0598312,1632.0,1631.7,4.90281]
[1744623715809,4.9617912,1632.0,1631.7,4.90281]
[1744623719319,4.90227,1631.9,1631.6,5.69185]
[1744623719617,4.90227,1631.9,1631.6,7.372473]
[1744623719817,4.90227,1631.9,1631.5,4.90338]
[1744623719818,5.68122,1631.9,1631.5,5.68038]
[1744623719997,4.9626812,1631.8,1631.4,11.89271]
[1744623720394,6.13356293,1631.7,1631.1,5.73162]
[1744623720623,4.90398,1631.4,1631.1,0.05]
[1744623720819,4.9638112,1631.4,1631.1,4.95464]
[1744623720984,0.7789,1631.6,1631.1,1.09723849]
[1744623721189,0.0598312,1631.5,1631.2,9.80826]
[1744623721717,0.0598312,1631.5,1631.3,4.904]
[1744623722022,4.9633912,1631.5,1631.2,4.90409]
[1744623722221,4.9633912,1631.5,1631.2,9.80833]
[1744623722524,4.9633912,1631.5,1631.2,9.80835]
[1744623722912,4.9633912,1631.5,1631.2,4.90409]
[1744623723121,0.0598312,1631.5,1631.2,9.80832]
[1744623723444,0.0598312,1631.5,1631.1,0.8001]
[1744623723445,4.9633112,1631.5,1631.1,5.70462]
[1744623723627,4.90383,1631.4,1631.1,5.70462]
[1744623723920,0.0598312,1631.5,1631.2,4.9042]
[1744623724120,4.9633012,1631.5,1631.2,4.9042]
[1744623725116,4.9633012,1631.5,1631.2,9.80844]
[1744623725321,4.9633012,1631.5,1631.2,4.9042]
[1744623725524,10.93146532,1631.5,1631.1,9.85918]
[1744623726121,10.93146532,1631.5,1631.1,0.05]
[1744623726122,4.90436,1631.2,1631.1,0.05]
[1744623726328,5.7249912,1631.2,1631.1,0.05]
[1744623726732,9.2749912,1631.2,1631.1,0.05]
[1744623726901,15.91599591,1631.2,1631.1,0.05]
[1744623727091,18.74196059,1631.2,1631.1,0.05]
[1744623727835,18.19196059,1631.2,1631.1,0.05]
[1744623728010,15.30616471,1631.2,1631.1,0.05]
[1744623728211,15.85616471,1631.2,1631.1,0.05]
[1744623729521,15.30616471,1631.2,1631.1,0.05]
[1744623731102,10.40180471,1631.2,1631.1,0.05]
[1744623731307,15.36599591,1631.2,1631.1,0.05]
[1744623731514,18.26813859,1631.2,1631.1,0.05]
[1744623732838,13.36377859,1631.2,1631.1,0.05]
[1744623733044,18.26813859,1631.2,1631.1,0.05]
[1744623733241,12.09813859,1631.2,1631.1,0.05]
[1744623733546,12.15796979,1631.2,1631.1,0.05]
[1744623738557,12.70796979,1631.2,1631.1,0.05]
[1744623738732,12.64813859,1631.2,1631.1,0.05]
[1744623738929,12.09813859,1631.2,1631.1,0.05]
[1744623739258,12.15796979,1631.2,1631.1,0.05]
[1744623740053,18.87796979,1631.2,1631.1,0.05]
[1744623740263,11.86372293,1631.0,1630.9,0.005]
[1744623740424,20.12540542,1631.0,1630.9,0.005]
[1744623740623,20.06557422,1631.0,1630.9,0.005]
[1744623741351,20.61557422,1631.0,1630.9,0.005]
[1744623745737,20.06557422,1631.0,1630.9,0.005]
[1744623752438,11.20185129,1631.0,1630.9,0.005]
[1744623752651,9.2298312,1631.0,1630.9,0.005]
[1744623753766,17.26835413,1631.0,1630.9,0.005]
[1744623753930,17.20852293,1631.0,1630.9,0.005]
[1744623754835,14.07496,1631.0,1630.9,0.005]
[1744623755165,3.0,1631.0,1630.9,0.8373]
[1744623755362,3.0598312,1631.0,1630.9,0.8373]
[1744623755663,0.0598312,1631.0,1630.9,0.8373]
[1744623757671,4.9647912,1631.0,1630.9,0.005]
[1744623758642,0.0598312,1631.0,1630.9,0.005]
[1744623759455,14.31407413,1631.1,1630.9,0.005]
[1744623759650,0.0598312,1631.0,1630.9,0.005]
[1744623767817,4.90383,1631.4,1631.2,0.7734]
[1744623768118,0.0598312,1631.4,1631.2,5.67776]
[1744623768295,0.0598312,1631.5,1631.3,4.90399]
[1744623768681,3.0598312,1631.5,1631.3,4.90399]
[1744623769309,3.0598312,1631.5,1631.3,9.80795]
[1744623769512,3.0598312,1631.5,1631.3,4.90396]
[1744623770587,3.0598312,1631.5,1631.3,9.80793]
[1744623770818,3.0598312,1631.5,1631.3,4.90396]
[1744623774318,3.0598312,1631.5,1631.3,9.80792]
[1744623774506,3.0598312,1631.5,1631.3,4.90396]
[1744623775002,3.0598312,1631.5,1631.2,10.58196]
[1744623775984,3.0598312,1631.5,1631.3,4.90399]
[1744623776180,3.0598312,1631.5,1631.4,4.90376]
[1744623776395,3.0,1631.5,1631.4,4.90376]
[1744623777125,0.0598312,1631.6,1631.5,4.90346]
[1744623777276,0.0598312,1631.6,1631.5,5.73666]
[1744623777277,3.0,1631.6,1631.5,5.73666]
[1744623778028,6.17,1631.7,1631.6,4.90316]
[1744623778189,6.2728312,1632.0,1631.6,4.90305]
[1744623778394,6.2728312,1632.0,1631.8,0.7655]
[1744623778791,6.2728312,1632.0,1631.8,5.66804]
[1744623778982,6.2728312,1632.0,1631.8,6.234844]
[1744623779321,6.2728312,1632.0,1631.9,4.90226]
[1744623779618,6.213,1632.0,1631.9,4.90226]
[1744623779780,6.17,1632.1,1631.9,4.90226]
[1744623779979,4.90235,1631.9,1631.6,0.8174]
[1744623780321,4.9626012,1631.8,1631.5,5.72073]
[1744623780724,4.90299,1631.7,1631.3,5.71525]
[1744623780929,4.9631712,1631.6,1631.3,10.61919]
[1744623781222,0.0598312,1631.6,1631.4,4.90374]
[1744623781379,5.7883212,1631.7,1631.4,4.90374]
[1744623781575,6.85741432,1631.7,1631.4,4.90374]
[1744623782524,4.95442432,1631.7,1631.3,0.8112]
[1744623782679,4.90347,1631.5,1631.3,0.8112]
[1744623782876,9.8669312,1631.5,1631.3,0.8112]
[1744623783077,9.8669312,1631.5,1631.2,5.67849]
[1744623783423,4.9633012,1631.5,1631.2,5.67849]
[1744623784036,4.9633012,1631.5,1631.2,5.67848]
[1744623784314,4.9633012,1631.5,1631.2,10.58274]
[1744623785392,4.9633012,1631.5,1631.2,5.67847]
[1744623786187,0.0598312,1631.5,1631.2,5.67846]
[1744623786387,0.0598312,1631.5,1631.3,4.90405]
[1744623786691,0.0598312,1631.5,1631.2,10.58272]
[1744623787339,0.0598312,1631.5,1631.3,4.904]
[1744623787496,0.0598312,1631.6,1631.4,4.90376]
[1744623787816,4.58124903,1631.6,1631.4,4.90376]
[1744623788205,4.52141783,1631.6,1631.4,4.90376]
[1744623788731,4.52141783,1631.6,1631.4,9.80741]
[1744623789023,3.0598312,1631.7,1631.4,9.8073]
[1744623789723,3.0598312,1631.7,1631.5,4.90332]
[1744623789932,10.6559912,1631.8,1631.5,5.68662]
[1744623792044,4.90339,1631.6,1631.4,0.8028]
[1744623792539,4.9029,1631.7,1631.4,5.70648]
[1744623792736,5.96851312,1631.7,1631.4,5.70648]
[1744623792947,5.96851312,1631.7,1631.4,5.70647]
[1744623793245,5.96851312,1631.7,1631.4,10.61012]
[1744623793754,5.96851312,1631.7,1631.4,5.70645]
[1744623793917,5.96851312,1631.7,1631.4,10.61011]
[1744623794116,5.96851312,1631.7,1631.4,5.70645]
[1744623794549,0.0598312,1631.6,1631.4,5.70645]
[1744623794960,6.02834432,1631.7,1631.4,5.70645]
[1744623795267,10.93135432,1631.7,1631.4,5.70645]
[1744623795548,6.02834432,1631.7,1631.4,5.70645]
[1744623795875,6.02834432,1631.7,1631.4,10.6101]
[1744623796251,6.02834432,1631.7,1631.4,5.70645]
[1744623796550,3.0598312,1631.7,1631.5,4.90345]
[1744623796863,3.0598312,1631.7,1631.5,9.8069]
[1744623797152,3.0598312,1631.7,1631.5,4.90345]
[1744623798156,3.0598312,1631.7,1631.5,4.90337]
[1744623798456,3.0598312,1631.7,1631.5,9.80673]
[1744623799013,6.9959,1631.9,1631.5,0.06129197]
[1744623799224,3.0598312,1631.9,1631.7,4.90269]
[1744623799468,0.0598312,1631.9,1631.7,9.80543]
[1744623799627,3.0598312,1632.0,1631.7,9.80543]
[1744623799833,3.0598312,1632.0,1631.6,0.796]
[1744623799834,0.0598312,1632.0,1631.8,4.9025]
[1744623800033,0.0598312,1632.0,1631.8,4.90245]
[1744623800233,0.0598312,1632.0,1631.8,9.80491]
[1744623800559,0.0598312,1632.0,1631.8,4.90245]
[1744623800729,0.0598312,1632.0,1631.7,9.80556]
[1744623801040,4.9617912,1632.0,1631.7,4.90278]
[1744623801247,5.66878,1631.8,1631.5,5.69586]
[1744623801561,0.0598312,1631.7,1631.5,10.59921]
[1744623801926,0.0598312,1631.9,1631.7,4.90285]
[1744623802239,3.98629183,1631.9,1631.6,4.90304]
[1744623802448,8.88856183,1631.9,1631.6,4.90304]
[1744623803956,13.79094183,1631.9,1631.6,4.90304]
[1744623804156,13.73111063,1631.9,1631.6,4.90304]
[1744623804475,0.0598312,1631.8,1631.6,4.90304]
[1744623805261,7.9625012,1631.8,1631.5,10.59925]
[1744623805437,3.0598312,1631.8,1631.6,4.90314]
[1744623805637,3.0,1631.8,1631.6,9.80619]
[1744623805969,3.0,1631.8,1631.7,4.90286]
[1744623806636,3.0598312,1631.9,1631.7,4.90286]
[1744623806964,3.0598312,1631.9,1631.7,4.90276]
[1744623807165,9.55562053,1631.9,1631.6,4.90311]
[1744623807531,9.55562053,1631.9,1631.6,9.80619]
[1744623807863,4.65335053,1631.9,1631.6,9.80619]
[1744623808338,4.65335053,1631.9,1631.6,4.90308]
[1744623808672,9.8056,1631.8,1631.4,9.8074]
[1744623808981,0.0598312,1631.7,1631.4,9.8074]
[1744623809851,4.90317,1631.6,1631.3,11.90787]
[1744623810057,0.7588,1631.7,1631.3,11.90787]
[1744623810255,3.0598312,1631.6,1631.4,4.90374]
[1744623810456,3.0,1631.6,1631.3,10.60184]
[1744623811166,10.56494,1631.7,1631.3,10.60184]
[1744623811167,3.0,1631.7,1631.5,9.80682]
[1744623811332,3.0598312,1631.7,1631.5,4.90336]
[1744623815263,3.0598312,1631.7,1631.4,9.8074]
[1744623817079,3.0,1631.5,1631.1,0.7661]
[1744623817277,3.0,1631.5,1631.1,5.67065]
[1744623817278,0.0598312,1631.4,1631.1,5.67065]
[1744623817479,0.0598312,1631.4,1631.2,4.9042]
[1744623817645,3.8821312,1631.6,1631.3,4.90398]
[1744623817979,3.8821312,1631.6,1631.3,9.80792]
[1744623818179,0.0598312,1631.6,1631.4,4.90354]
[1744623818379,6.9644,1631.8,1631.4,5.69798]
[1744623818544,6.9644,1631.8,1631.6,9.8061]
[1744623818545,0.0598312,1631.8,1631.6,9.8061]
[1744623818747,0.0598312,1631.8,1631.7,4.90286]
[1744623818953,3.0598312,1631.9,1631.7,4.90286]
[1744623819147,3.0,1631.9,1631.7,10.6097]
[1744623819888,4.09863652,1632.2,1632.1,4.90166]
[1744623820057,4.09863652,1632.2,1632.1,6.688908]
[1744623821751,4.09863652,1632.6,1632.5,5.65975]
[1744623822654,4.09863652,1632.6,1632.5,0.7593]
[1744623822987,4.09863652,1632.6,1632.4,4.90062]
[1744623823284,10.23260137,1632.6,1632.2,5.66805]
[1744623823489,4.92246772,1632.6,1632.3,9.80189]
[1744623823788,4.15846772,1632.6,1632.4,4.90075]
[1744623824190,0.0598312,1632.6,1632.4,4.90075]
[1744623824889,3.764,1632.7,1632.4,9.80126]
[1744623824890,3.8238312,1632.7,1632.4,9.80126]
[1744623825290,3.0598312,1632.7,1632.5,4.90041]
[1744623825585,3.0598312,1632.7,1632.6,4.90015]
[1744623825884,3.0,1632.7,1632.5,5.69771]
[1744623827505,3.0,1632.7,1632.5,10.59804]
[1744623828792,3.0,1632.7,1632.5,5.69763]
[1744623829195,0.0598312,1632.8,1632.6,4.90015]
[1744623829577,4.9594112,1632.8,1632.5,5.69766]
[1744623829793,0.0598312,1632.8,1632.5,10.59801]
[1744623832803,4.9593912,1632.8,1632.5,5.69765]
[1744623833504,3.0,1632.7,1632.5,5.69765]
[1744623833671,3.0,1632.7,1632.5,10.59802]
[1744623834009,3.0,1632.7,1632.5,0.7973]
[1744623834305,3.85577032,1632.7,1632.3,0.7702]
[1744623834601,7.9597512,1632.7,1632.4,4.90067]
[1744623834800,7.9597512,1632.7,1632.4,9.80134]
[1744623835008,3.0598312,1632.7,1632.4,4.90067]
[1744623835792,7.9596912,1632.7,1632.4,4.90067]
[1744623836005,7.9596912,1632.7,1632.4,4.90066]
[1744623836600,7.9596912,1632.7,1632.4,9.80131]
[1744623836803,3.0598312,1632.7,1632.5,4.90042]
[1744623837107,3.0,1632.7,1632.5,9.80079]
[1744623837605,6.209,1633.0,1632.8,4.89955]
[1744623837810,0.8543312,1633.1,1632.9,4.89925]
[1744623838312,3.0598312,1633.1,1632.9,4.89915]
[1744623838518,3.0598312,1633.1,1632.8,9.79902]
[1744623838683,3.0598312,1633.1,1632.9,4.89917]
[1744623839009,3.0598312,1633.1,1632.9,9.79833]
[1744623839208,0.0598312,1633.1,1632.9,9.79833]
[1744623839502,0.8543312,1633.2,1632.9,4.89916]
[1744623839696,5.7529512,1633.2,1632.8,6.649852]
[1744623839899,3.8543312,1633.2,1632.9,9.79846]
[1744623840096,8.79105293,1633.3,1633.0,4.89891]
[1744623840306,4.89877,1633.1,1632.7,4.89978]
[1744623840525,5.7181812,1633.0,1632.7,9.79953]
[1744623840720,5.7181812,1633.0,1632.7,11.476773]
[1744623840893,5.65835,1633.0,1632.7,11.476773]
[1744623841308,0.7594,1633.0,1632.7,11.476773]
[1744623841478,0.7594,1633.0,1632.8,9.79887]
[1744623841680,0.0598312,1633.2,1632.9,4.89898]
[1744623841901,0.0598312,1633.2,1633.0,4.89895]
[1744623842184,0.0598312,1633.2,1632.9,11.109798]
[1744623842379,4.9581912,1633.2,1632.9,6.210678]
[1744623842575,9.8566812,1633.2,1632.9,4.89898]
[1744623842780,9.8566812,1633.2,1632.8,9.79896]
[1744623843324,0.17455273,1633.1,1632.8,9.79896]
[1744623843484,9.8566912,1633.2,1632.8,9.79896]
[1744623843684,0.17381381,1633.0,1632.8,9.79896]
[1744623843899,9.8566912,1633.2,1632.8,11.0232203]
[1744623844099,0.1730748,1632.9,1632.8,4.89948]
[1744623844299,4.89866,1633.1,1632.8,4.89948]
[1744623844515,0.1730748,1632.9,1632.8,4.89948]
[1744623844712,4.9584912,1633.1,1632.8,9.79895]
[1744623844923,0.1730748,1632.9,1632.8,9.79895]
[1744623845108,4.9584912,1633.1,1632.8,11.0232093]
[1744623845430,7.89836,1633.2,1632.9,4.89917]
[1744623845593,0.17455273,1633.1,1632.9,9.79834]
[1744623845791,7.9581912,1633.2,1632.9,9.79834]
[1744623846031,0.17455273,1633.1,1632.9,9.79834]
[1744623846231,3.0598312,1633.2,1632.9,10.90059993]
[1744623846419,0.17455273,1633.1,1632.9,10.90059993]
[1744623846618,3.0598312,1633.2,1632.9,10.90059993]
[1744623846815,7.9582112,1633.2,1632.9,6.00142993]
[1744623847021,0.17455273,1633.1,1632.9,6.00142993]
[1744623847224,12.8566912,1633.2,1632.9,6.00142993]
[1744623847434,0.51107498,1633.4,1633.1,0.8182]
[1744623847636,5.46876618,1633.4,1633.0,11.21612299]
[1744623847813,0.1760303,1633.3,1633.0,11.21612299]
[1744623848450,0.0598312,1633.2,1633.0,0.60014299]
[1744623848751,5.13358276,1633.2,1633.0,0.60014299]
[1744623849109,0.23512276,1633.2,1632.8,5.66919]
[1744623849314,4.89875,1633.1,1632.8,10.56865]
[1744623849513,5.07330273,1633.1,1632.8,10.56865]
[1744623849709,0.17455273,1633.1,1632.8,10.56865]
[1744623849913,9.8568612,1633.2,1632.9,4.89925]
[1744623850549,0.17455273,1633.1,1632.9,4.89916]
[1744623851039,9.8568312,1633.2,1632.9,4.89916]
[1744623851040,0.17381381,1633.0,1632.9,4.89916]
[1744623851239,9.8568312,1633.2,1632.9,4.89916]
[1744623851440,0.17455273,1633.1,1632.9,4.89916]
[1744623851635,9.8568312,1633.2,1632.9,4.89916]
[1744623851843,0.17455273,1633.1,1632.9,4.89916]
[1744623852025,9.8568312,1633.2,1632.9,4.89916]
[1744623852246,4.8991,1633.0,1632.6,0.7639]
[1744623852411,0.232906,1632.9,1632.6,10.56402]
[1744623852744,0.7734,1632.8,1632.5,4.90026]
[1744623853042,5.8453157,1632.8,1632.5,4.90026]
[1744623853266,4.90038,1632.6,1632.2,10.56647]
[1744623853413,3.0,1632.3,1632.0,4.90186]
[1744623853615,3.0,1632.3,1632.0,4.90182]
[1744623853935,0.0598312,1632.4,1632.0,4.90196]
[1744623854138,3.0598312,1632.6,1632.4,4.90061]
[1744623854941,7.9599912,1632.6,1632.3,4.90105]
[1744623855243,3.0598312,1632.6,1632.3,9.80196]
[1744623855749,3.0598312,1632.6,1632.3,4.90091]
[1744623856447,7.9600012,1632.6,1632.3,4.90091]
[1744623857746,3.0598312,1632.6,1632.3,4.90091]
[1744623858245,7.9599912,1632.6,1632.3,4.90091]
[1744623858833,12.8603312,1632.6,1632.2,9.80266]
[1744623859040,12.80049,1632.6,1632.3,4.90103]
[1744623859346,14.157879,1632.6,1632.2,4.90133]
[1744623860118,12.80049,1632.6,1632.2,4.90133]
[1744623860313,0.0598312,1632.5,1632.2,4.90133]
[1744623860510,0.0598312,1632.5,1632.0,4.90183]
[1744623860511,5.69627,1632.4,1632.0,4.90183]
[1744623860713,7.90131,1632.3,1631.9,4.90222]
[1744623860939,0.8499622,1632.2,1631.9,9.80435]
[1744623861141,0.0598312,1632.2,1631.9,9.80435]
[1744623861334,4.9612212,1632.2,1631.9,4.90213]
[1744623862413,4.9612212,1632.2,1631.7,16.81752]
[1744623862414,10.6271,1632.1,1631.7,16.81752]
[1744623862617,0.0598312,1632.0,1631.7,4.90281]
[1744623862856,0.0598312,1632.0,1631.7,9.80557]
[1744623863062,0.0598312,1632.0,1631.8,4.90247]
[1744623863220,0.8832312,1632.1,1631.8,9.80489]
[1744623863871,0.45898401,1632.1,1631.9,4.90217]
[1744623864018,0.45898401,1632.1,1631.9,9.80431]
[1744623864215,3.0,1632.3,1632.1,4.90166]
[1744623864445,3.0,1632.3,1632.1,9.80322]
[1744623864821,3.0,1632.3,1632.1,9.80312]
[1744623865033,3.0,1632.3,1632.1,4.90156]
[1744623865431,3.0,1632.3,1632.1,4.90154]
[1744623869374,14.52277591,1632.7,1632.1,4.90154]
[1744623869375,6.981,1633.0,1632.7,4.89972]
[1744623869537,0.0598312,1633.1,1632.7,4.89972]
[1744623869733,2.25286061,1633.2,1633.0,4.89895]
[1744623870074,2.25286061,1633.2,1632.8,4.89955]
[1744623870372,7.15132061,1633.2,1632.8,9.79901]
[1744623870557,5.61381206,1633.1,1632.8,4.89946]
[1744623870754,5.61381206,1633.1,1632.8,9.79889]
[1744623871078,3.71513206,1633.1,1632.8,9.79889]
[1744623871474,0.71513206,1633.1,1632.8,9.79889]
[1744623871648,3.71513206,1633.1,1632.8,9.79888]
[1744623871855,3.0598312,1633.1,1632.8,9.79888]
[1744623872350,3.0598312,1633.1,1632.8,4.89943]
[1744623872674,3.0,1633.1,1633.0,4.89895]
[1744623873148,3.13896719,1633.1,1633.0,4.89895]
[1744623873552,0.13896719,1633.1,1633.0,5.76513795]
[1744623873766,0.9074312,1633.4,1633.1,4.89844]
[1744623873972,3.9074312,1633.4,1633.1,4.89844]
[1744623874136,0.05,1633.4,1633.2,4.89824]
[1744623874486,0.05,1633.4,1632.9,5.67242]
[1744623874487,5.724,1633.3,1632.9,10.57158]
[1744623874690,0.0598312,1633.2,1632.9,4.89916]
[1744623874989,0.0598312,1633.2,1632.9,9.7983]
[1744623875165,0.0598312,1633.2,1633.0,4.89891]
[1744623876290,0.0598312,1633.2,1633.0,4.89882]
[1744623876442,0.0598312,1633.2,1633.0,4.89881]
[1744623877685,0.0598312,1633.2,1633.0,5.87861]
[1744623877844,3.1098312,1633.4,1633.1,4.89865]
[1744623878038,3.1098312,1633.4,1633.2,4.89826]
[1744623878273,3.05,1633.4,1633.2,9.79653]
[1744623879662,3.05,1633.4,1633.2,4.89826]
[1744623879885,0.1098312,1633.4,1633.2,4.89826]
[1744623880066,5.0076712,1633.4,1633.1,4.89859]
[1744623880271,5.93722806,1633.4,1633.1,4.89859]
[1744623880574,0.1098312,1633.4,1633.2,4.8982]
[1744623881158,0.05,1633.4,1633.3,4.89805]
[1744623884772,0.05,1633.4,1633.3,5.67605]
[1744623885885,0.05,1633.4,1633.3,8.80961293]
[1744623886447,0.17060738,1633.4,1633.3,8.80961293]
[1744623886784,0.05,1633.4,1633.3,10.18039422]
[1744623887859,0.05,1633.4,1633.3,7.04683129]
[1744623888373,0.16986162,1633.4,1633.3,7.04683129]
[1744623892993,0.05,1633.4,1633.3,7.04683129]
[1744623895006,0.05,1633.4,1633.3,10.18039422]
[1744623896703,1e-05,1633.4,1633.3,10.18039422]
[1744623897236,1e-05,1633.4,1633.3,10.65803573]
[1744623897408,1e-05,1633.4,1633.3,10.65803171]
[1744623897608,1e-05,1633.4,1633.3,10.59683129]
[1744623897805,1e-05,1633.4,1633.3,10.65803172]
[1744623898208,1e-05,1633.4,1633.3,10.59683129]
[1744623898428,1e-05,1633.4,1633.3,16.75683129]
[1744623899934,0.8291,1634.4,1634.3,4.89506]
[1744623900231,0.19383958,1634.4,1634.3,5.93527279]
[1744623900429,9.58e-06,1634.5,1634.4,4.89476]
[1744623900804,0.80280958,1634.5,1634.4,4.89476]
[1744623901433,9.58e-06,1634.5,1634.4,4.89476]
[1744623901625,9.58e-06,1634.5,1634.4,5.9716448]
[1744623901822,9.58e-06,1634.5,1634.4,6.7918448]
[1744623902706,9.58e-06,1634.5,1634.4,5.9716448]
[1744623903435,0.8091,1634.4,1634.3,4.89506]
[1744623904539,0.80960958,1634.5,1634.4,4.89476]
[1744623905071,9.58e-06,1634.5,1634.4,4.89476]
[1744623906325,0.79560958,1634.5,1634.4,4.89476]
[1744623909138,0.79560958,1634.5,1634.3,9.78986]
[1744623909465,0.79560958,1634.5,1634.4,4.89476]
[1744623909665,0.79560958,1634.5,1634.3,9.78988]
[1744623909870,0.85544078,1634.5,1634.3,9.78988]
[1744623910450,0.79560958,1634.5,1634.4,4.89476]
[1744623910878,9.58e-06,1634.5,1634.4,4.89476]
[1744623913481,9.58e-06,1634.5,1634.3,4.89492]
[1744623913650,0.05984078,1634.5,1634.3,4.89492]
[1744623914102,0.05984078,1634.5,1634.3,9.78987]
[1744623914949,9.58e-06,1634.5,1634.4,4.89476]
[1744623915160,9.58e-06,1634.5,1634.3,4.89492]
[1744623915947,9.58e-06,1634.5,1634.3,9.78987]
[1744623917396,9.58e-06,1634.5,1634.3,4.89492]
[1744623917988,9.58e-06,1634.5,1634.3,9.78989]
[1744623918492,9.58e-06,1634.5,1634.4,4.89476]
[1744623918787,9.58e-06,1634.5,1634.3,9.78986]
[1744623918978,9.58e-06,1634.5,1634.3,4.89492]
[1744623919174,9.58e-06,1634.5,1634.4,4.89476]
[1744623920453,9.58e-06,1634.5,1634.3,9.78987]
[1744623920654,9.58e-06,1634.5,1634.4,4.89476]
[1744623922480,9.58e-06,1634.5,1634.2,4.89526]
[1744623922683,0.8146,1634.4,1634.1,9.79115]
[1744623922852,0.8146,1634.4,1634.2,4.89533]
[1744623923466,5.7094,1634.4,1634.1,9.79112]
[1744623923682,5.7692312,1634.4,1634.1,9.79112]
[1744623923857,4.89517,1634.3,1634.0,4.89587]
[1744623924060,5.7621012,1634.2,1633.9,4.89616]
[1744623924761,0.52522094,1634.2,1634.1,4.89566]
[1744623924965,0.8297,1634.3,1634.2,4.89532]
[1744623925494,3.0598312,1634.4,1634.2,9.79064]
[1744623925787,3.0598312,1634.4,1634.2,4.89532]
[1744623925990,3.0598312,1634.4,1634.2,9.79057]
[1744623926188,3.0598312,1634.4,1634.2,4.89525]
[1744623926556,3.0598312,1634.4,1634.2,9.79049]
[1744623926790,3.0598312,1634.4,1634.2,4.89524]
[1744623927175,3.0598312,1634.4,1634.2,4.89531]
[1744623927489,3.0598312,1634.4,1634.1,4.89557]
[1744623927658,3.0598312,1634.4,1633.9,4.89617]
[1744623927659,4.89538,1634.2,1633.9,4.89617]
[1744623927990,0.7667,1634.0,1633.9,4.89617]
[1744623928591,0.7667,1634.0,1633.8,9.79291]
[1744623929192,0.8265312,1634.0,1633.8,4.89644]
[1744623929396,0.8109312,1634.1,1633.9,4.89626]
[1744623929562,0.8109312,1634.1,1633.9,9.79252]
[1744623931294,0.8109312,1634.1,1633.9,4.89626]
[1744623931595,0.8109312,1634.1,1633.9,9.79241]
[1744623932294,0.8109312,1634.1,1633.9,4.89615]
[1744623932663,5.7067012,1634.1,1633.8,4.89646]
[1744623933082,5.7067012,1634.1,1633.8,9.79292]
[1744623933398,0.8109312,1634.1,1634.0,4.89596]
[1744623933572,0.7511,1634.1,1634.0,4.89596]
[1744623934095,3.8117312,1634.2,1634.0,4.89596]
[1744623934396,0.8117312,1634.3,1634.1,4.89566]
[1744623935282,6.62249465,1634.3,1633.8,2.386692]
[1744623935484,3.0,1634.2,1634.1,4.89566]
[1744623935787,0.8117312,1634.3,1634.1,9.79132]
[1744623935987,0.8117312,1634.3,1634.1,4.89566]
[1744623936869,0.8117312,1634.3,1634.0,9.79178]
[1744623937201,0.8117312,1634.3,1634.0,4.89589]
[1744623937867,3.0,1634.2,1634.0,4.89589]
[1744623938064,3.0,1634.2,1634.0,9.79174]
[1744623938582,3.0,1634.2,1634.0,4.89585]
[1744623938788,3.0,1634.2,1634.0,9.79169]
[1744623938989,3.0,1634.2,1634.0,4.89584]
[1744623939191,0.8605312,1634.1,1633.8,4.89638]
[1744623939393,0.8605312,1634.1,1633.9,4.89623]
[1744623942293,0.8007,1634.1,1633.9,9.79239]
[1744623942628,0.8007,1634.1,1633.9,9.79232]
[1744623942804,0.8007,1634.1,1633.9,4.89616]
[1744623942971,3.0598312,1634.2,1634.0,4.89569]
[1744623943171,3.0,1634.2,1634.1,4.89566]
[1744623943994,0.8600312,1634.3,1634.0,5.7503241]
[1744623943995,0.8002,1634.3,1634.0,5.7503241]
[1744623944185,4.89551,1634.2,1633.9,9.79229]
[1744623944381,10.6503012,1634.3,1633.9,9.79229]
[1744623944683,7.17847394,1634.3,1634.0,4.89584]
[1744623945113,5.28337394,1634.3,1634.0,4.89584]
[1744623945509,15.07369394,1634.3,1634.0,4.89584]
[1744623945675,10.11861274,1634.3,1634.0,4.89584]
[1744623945875,10.17844394,1634.3,1634.0,4.89584]
[1744623946105,15.07362394,1634.3,1634.0,4.89584]
[1744623946286,15.01379274,1634.3,1633.9,9.79236]
[1744623946486,0.0598312,1634.2,1633.9,9.79236]
[1744623947110,4.9551912,1634.2,1633.9,9.79236]
[1744623947280,4.9551912,1634.2,1633.9,4.89618]
[1744623947704,9.8506912,1634.2,1633.9,4.89618]
[1744623947897,5.72782,1634.1,1633.8,4.89646]
[1744623948094,4.9559512,1634.0,1633.6,4.89697]
[1744623948915,4.9559512,1634.0,1633.7,4.89683]
[1744623949102,0.7778,1633.9,1633.6,9.79399]
[1744623949308,0.7778,1633.9,1633.6,10.773389]
[1744623949498,0.7778,1633.9,1633.7,4.89683]
[1744623953323,1.22987151,1633.9,1633.7,4.89683]
[1744623954299,1.22987151,1633.9,1633.5,4.89724]
[1744623954300,4.9564012,1633.8,1633.5,4.89724]
[1744623954504,0.0598312,1633.8,1633.6,4.89715]
[1744623954891,0.0598312,1633.8,1633.5,9.79461]
[1744623955293,0.0598312,1633.8,1633.6,4.89715]
[1744623955493,3.0,1633.9,1633.6,4.89715]
[1744623955730,7.89635,1633.9,1633.6,4.89715]
[1744623956198,4.89658,1633.8,1633.5,9.79459]
[1744623956526,13.25232584,1633.9,1633.5,4.89724]
[1744623956728,15.50941472,1633.9,1633.5,9.79459]
[1744623956894,10.61292472,1633.9,1633.6,4.89715]
[1744623957526,5.71659472,1633.9,1633.5,4.89724]
[1744623957729,5.71659472,1633.9,1633.3,9.79592]
[1744623957730,4.89715,1633.6,1633.3,9.79592]
[1744623957915,4.89747,1633.5,1633.2,7.40186423]
[1744623958492,4.89747,1633.5,1633.2,2.50353423]
[1744623958732,5.64796,1633.4,1633.2,2.50353423]
[1744623959524,0.7502,1633.4,1633.2,7.40186423]